Cogmind - Beta 16 *** ADVENTURER MODE // 2025.11.28 @ 00:33:45 Player: Gder Result: Destroyed by S-27 Virus with Autogun Performance ------------- Evolutions (6) 3000 Regions Visited (18) 3600 Robots Destroyed (392) 1960 Value Destroyed (16062) 16062 Prototype IDs (11) 220 Alien Tech Used (0) 0 Bonus (6703) 6703 TOTAL SCORE: 31545 Bonus ------- High Alert Combat Kills 1608 Follower Combat Kills 2145 Entered Garrisons 800 Used RIF Installer 2500 Friendly Fire -350 Cogmind --------- Core Integrity 0/1150 Matter 300/300 Energy 99/100 System Corruption 15% Temperature Cool (0) Movement Core (50) Location -4/Factory Parts ------- > --- POWER (2) -------- (None) > --- PROPULSION (5) --- (None) > --- UTILITY (6) ------ (None) > --- WEAPON (6) ------- (None) > --- INVENTORY (5) ---- Flexi-carbon Leg Medium Armored Exoskeleton Terrain Scanner Peak State ------------ > --- POWER ------------ Micro Fission Core Light Antimatter Reactor > --- PROPULSION ------- Medium Armored Exoskeleton Myomer Leg Myomer Leg > --- UTILITY ---------- Advanced Heat Sink Advanced Heat Sink Large Storage Unit Advanced Targeting Computer Core Analyzer High-powered Tractor Beam > --- WEAPON ----------- High-powered Shock Rifle Dispersion Rifle Coil Gun Coil Gun Mini Assault Cannon Power Sword > --- INVENTORY -------- Neutrino Core Flexi-carbon Leg Flexi-carbon Leg Flexi-carbon Leg Flexi-carbon Leg Flexi-carbon Leg Medium Armored Exoskeleton Myomer Leg Myomer Leg Myomer Leg High-capacity Matter Pod Structural Scanner Terrain Scanner [Rating: 105] Favorites ----------- Power Improved Deuterium Engine Engine Improved Deuterium Engine Power Core Light Nuclear Core Reactor Light Antimatter Reactor Propulsion Armored Wheel Treads Improved Treads Leg Aluminum Leg Wheel Armored Wheel Utility Large Storage Unit Device Advanced Heat Sink Storage Large Storage Unit Processor Advanced Targeting Computer Hackware Relay Coupler [Duelist] Protection Improved Light Armor Plating Weapon Gauss Rifle Energy Gun Dispersion Rifle Energy Cannon Improved EM Pulse Cannon Ballistic Gun Gauss Rifle Ballistic Cannon Enhanced Gauss Cannon Launcher Heavy Rocket Launcher Special Weapon Remote Datajack Slashing Weapon Axe Build | -11 -10 -9 -8 -8 -8 -8 -7 -7 -6 -6 -6 -6 -5 -5 -5 -5 -5 -4 ------- Run | Yrd Mat Mat Mat Gar Mat Gar Fac Gar Fac Was Fac Gar Fac Was Fac Upp Upp Fac Slots Evolved 12 | . . 2 2 . . . 2 . 2 . . . 2 . . . . 2 Power 1 | . . . . . . . . . . . . . . . . . . 1 Propulsion 3 | . . 1 1 . . . . . . . . . . . . . . 1 Utility 4 | . . . 1 . . . 1 . 1 . . . 1 . . . . . Weapon 4 | . . 1 . . . . 1 . 1 . . . 1 . . . . . Parts Attached 166 | 7 9 22 4 8 . 3 23 5 9 2 11 9 8 1 13 3 2 27 Power 22 | 1 . 3 . 2 . . 3 . 1 . 1 1 . . 1 1 . 8 Engine 13 | 1 . 3 . . . . 3 . 1 . 1 . . . 1 . . 3 Core 6 | . . . . 2 . . . . . . . . . . . 1 . 3 Reactor 3 | . . . . . . . . . . . . 1 . . . . . 2 Propulsion 39 | 2 5 7 1 2 . . 4 . 2 2 3 4 . . 2 1 1 3 Treads 15 | . . . . . . . 4 . 2 2 3 4 . . . . . . Leg 15 | 2 4 2 . . . . . . . . . . . . 2 1 1 3 Wheel 9 | . 1 5 1 2 . . . . . . . . . . . . . . Hover . | . . . . . . . . . . . . . . . . . . . Flight . | . . . . . . . . . . . . . . . . . . . Utility 49 | 2 3 3 1 1 . 1 8 3 5 . 2 2 5 1 5 . 1 6 Device 22 | 1 . 2 . . . . 3 . 2 . 1 2 4 . 2 . . 5 Storage 7 | 1 3 1 . . . . 1 . . . . . 1 . . . . . Processor 8 | . . . 1 . . . 1 1 1 . 1 . . 1 1 . . 1 Hackware 3 | . . . . . . 1 1 1 . . . . . . . . . . Protection 9 | . . . . 1 . . 2 1 2 . . . . . 2 . 1 . Artifact . | . . . . . . . . . . . . . . . . . . . Weapon 56 | 2 1 9 2 3 . 2 8 2 1 . 5 2 3 . 5 1 . 10 Energy Gun 4 | . . . . . . . . . . . 1 . . . . . . 3 Energy Cannon 1 | . . . . . . . . . . . 1 . . . . . . . Ballistic Gun 31 | 2 1 8 1 2 . 1 6 . . . . 1 3 . . . . 6 Ballistic Cannon 14 | . . 1 1 . . . . 2 1 . 2 . . . 5 1 . 1 Launcher 3 | . . . . . . 1 1 . . . . 1 . . . . . . Special Weapon 1 | . . . . . . . 1 . . . . . . . . . . . Impact Weapon . | . . . . . . . . . . . . . . . . . . . Slashing Weapon 2 | . . . . 1 . . . . . . 1 . . . . . . . Piercing Weapon . | . . . . . . . . . . . . . . . . . . . Special Melee Weapon . | . . . . . . . . . . . . . . . . . . . Unidentified Prototypes 9 | . . 1 . . . . 3 . . . 1 2 . 1 1 . . . Parts Lost 68 | . 1 5 1 5 . 2 4 2 2 4 . 2 3 . 1 . 1 35 Power 8 | . . 2 . . . . . . . . . . . . . . 1 5 Propulsion 18 | . . 1 . 2 . 1 3 . 2 2 . 1 1 . . . . 5 Utility 14 | . . 1 . 1 . . 1 1 . . . 1 1 . 1 . . 7 Weapon 28 | . 1 1 1 2 . 1 . 1 . 2 . . 1 . . . . 18 Highest Loss Streak 13 | . 1 3 1 2 . 1 1 1 1 3 . 2 1 . 1 . 1 13 To Critical Strikes 3 | . . . . . . 1 . . . . . . 1 . . . . 1 Average Backups 15 | 2 9 18 20 22 24 24 22 14 13 13 11 12 11 12 11 12 10 9 Power 1 | . 1 1 1 1 1 1 1 1 1 1 . 1 1 1 1 1 . . Propulsion 3 | 1 4 5 3 2 3 3 5 3 2 3 1 3 2 2 1 1 1 4 Utility 4 | . 1 3 6 7 10 9 7 5 6 6 5 3 2 2 2 3 2 1 Weapon 5 | . 2 8 10 10 9 8 7 4 3 3 3 4 5 6 6 7 7 2 Tool/Special . | . . . . . . . . . . . . . . . . . . . Unused Backups 49 | . 1 6 . 1 . 2 16 . 4 . 2 2 . 1 2 . . 12 Power 4 | . . 1 . . . . . . 1 . . . . . . . . 2 Propulsion 26 | . 1 2 . . . . 10 . . . . 1 . . 2 . . 10 Utility 11 | . . 1 . 1 . 1 2 . 2 . 2 1 . 1 . . . . Weapon 8 | . . 2 . . . 1 4 . 1 . . . . . . . . . Tool/Special . | . . . . . . . . . . . . . . . . . . . Average Slot Usage (%) 93 | . 100 97 99 98 100 98 97 99 92 65 82 92 96 100 87 88 87 75 Engine 6 | . 14 10 9 3 . . 5 7 6 3 5 6 5 5 5 1 4 3 Core 1 | . . . . 5 9 9 1 . . . . . . . . 3 . 1 Treads 10 | . . . . . . . 7 29 25 17 25 25 23 23 4 . . . Leg 5 | . 22 16 . . . . . . . . . . . . 5 11 10 13 Wheel 9 | . 5 16 36 35 36 34 19 . . . . . . . . . . . Device 10 | . 14 9 9 1 . . 6 7 9 13 15 13 14 10 12 17 17 12 Storage 8 | . 14 11 9 9 9 9 7 7 6 6 6 6 9 11 8 5 5 6 Processor 5 | . . . 8 9 9 9 7 7 12 9 6 6 5 5 5 5 5 8 Protection 3 | . . . . 6 9 8 6 6 3 . . 5 3 5 5 5 5 . Ballistic Gun 17 | . 28 30 27 25 18 24 28 23 5 2 . 3 16 23 12 1 . 9 Ballistic Cannon 9 | . . 1 . . . . . 3 16 11 13 20 13 11 21 32 34 10 Slashing Weapon 1 | . . . . 1 9 1 1 2 2 . 4 . . . . . . 2 Peak Build Rating 105 | 7 8 23 28 31 29 29 43 44 52 52 62 64 68 68 90 95 95 105 Average Rating 47 | 5 7 16 27 29 29 28 38 40 50 37 52 57 63 60 80 92 91 85 On Entrance 43 | . 7 8 23 28 29 29 27 40 44 52 28 61 57 60 61 89 95 91 Avg Prop Armor Cover (%) 10 | . 9 12 . . . . . . . . . . . . 3 . . . Naked Turns 73 | . . . . . . . . . . . . . . . . . . 73 Heaviest Build 110 | 15 49 99 101 101 97 97 110 60 72 66 75 79 84 72 94 101 101 97 Greatest Support 100 | 20 20 36 48 48 48 48 92 92 92 91 99 99 96 96 96 70 70 100 Greatest Overweight (x) 8 | . 3 5 2 2 2 4 8 1 1 2 . 1 . . 1 1 1 7 Average Overweight (x) 1 | . . 3 1 2 2 2 1 . . . . . . . . 1 1 . Largest Inventory Capacity 25 | 8 20 25 25 25 25 25 25 15 15 15 15 15 15 15 15 15 15 15 Average Capacity 17 | 7 13 20 25 25 25 25 22 15 15 15 15 15 15 15 15 15 15 14 Most Carried 25 | 4 14 20 22 25 24 25 25 15 15 15 15 15 15 15 15 15 15 15 Average Carried 16 | 2 9 18 20 22 24 24 22 14 14 14 13 14 13 14 14 15 13 11 Final Capacity 25 | 8 20 25 25 25 25 25 15 15 15 15 15 15 15 15 15 15 15 5 Final Carried 25 | 4 13 19 22 24 24 25 15 15 15 13 15 14 15 15 15 15 14 5 Class Distribution -------------------- 21% | Gunner 19% | Scavenger-Executioner 13% | Scientist-Gunner 11% | Mutant 9% | Scavenger-Gunner 7% | Tank 4% | Skirmisher 4% | Scientist-Executioner 3% | Executioner Dominant Class ---------------- Mutant | -10/Materials Gunner | -9/Materials Skirmisher | -8/Materials Tank | -8/Garrison Mutant | -8/Materials Tank | -8/Garrison Gunner | -7/Factory Gunner | -7/Garrison Scientist-Gunner | -6/Factory Mutant | -6/Waste Scientist-Gunner | -6/Factory Scavenger-Gunner | -6/Garrison Scientist-Executioner | -5/Factory Scavenger-Executioner | -5/Waste Scavenger-Executioner | -5/Factory Scavenger-Executioner | -5/Upper Caves Executioner | -5/Upper Caves Scavenger-Executioner | -4/Factory Resources | -11 -10 -9 -8 -8 -8 -8 -7 -7 -6 -6 -6 -6 -5 -5 -5 -5 -5 -4 ----------- Run | Yrd Mat Mat Mat Gar Mat Gar Fac Gar Fac Was Fac Gar Fac Was Fac Upp Upp Fac Matter Collected 12931 | 294 640 931 513 553 . 424 1313 982 844 265 227 1262 1405 34 306 305 357 2276 Remotely 472 | . . . . . . . . . . . . . . . . . . 472 Salvage Created 15741 | 118 890 1465 1248 856 . 432 1543 1287 1018 561 175 553 1741 . 308 184 477 2885 Parts 817 | 10 49 107 58 53 . 33 89 66 57 2 7 30 77 . 6 7 13 153 Haulers Intercepted 18 | . 2 3 2 . . . 3 . 4 . . . 2 . 1 . . 1 Recyclers Shooed 7 | . 1 . . . . . 1 . 1 . . . . . 1 . . 3 Parts Field Recycled . | . . . . . . . . . . . . . . . . . . . Retrieved Matter . | . . . . . . . . . . . . . . . . . . . Parts Self-Destructed 37 | . . . . . . . . . . . . . . . . 16 21 . Prevented . | . . . . . . . . . . . . . . . . . . . Parts Restored . | . . . . . . . . . . . . . . . . . . . Kills | -11 -10 -9 -8 -8 -8 -8 -7 -7 -6 -6 -6 -6 -5 -5 -5 -5 -5 -4 ------- Run | Yrd Mat Mat Mat Gar Mat Gar Fac Gar Fac Was Fac Gar Fac Was Fac Upp Upp Fac Combat Hostiles Destroyed 287 | . 16 34 22 23 . 13 21 34 14 2 3 17 23 . 2 6 14 43 Guns 182 | . 16 29 22 23 . 10 21 27 2 1 . 1 12 . . . . 18 Cannons 89 | . . 5 . . . . . 7 12 1 3 15 9 . 2 6 11 18 AOE 15 | . . . . . . 3 . . . . . 1 2 . . . 3 6 Classes Destroyed 20 | 2 5 2 2 1 . . 1 1 . 1 . 3 1 . . . . 1 Worker 21 | . 1 3 1 . . . 2 . 3 . . . 4 . . . . 7 Builder 22 | . . . 1 . . . 4 . 3 . . . 3 . . . . 11 Tunneler 11 | 3 . 2 1 . . . . . 1 . . . 3 . . . . 1 Hauler 18 | . 2 3 2 . . . 3 . 4 . . . 2 . 1 . . 1 Recycler 17 | 1 3 1 . . . . 2 . . . 1 . 3 . 2 . . 4 Mechanic 2 | . . . . . . . . . . . . . 1 . . . . 1 Operator 3 | . . 1 . . . . . . . . . . 1 . . . . 1 Watcher 9 | . 2 3 1 . . . 1 . 2 . . . . . . . . . Swarmer 71 | . 6 14 3 8 . 4 . 17 . . . 5 . . 1 2 3 8 Saboteur 1 | . . . . . . . . . . . . 1 . . . . . . Grunt 111 | . 10 10 17 10 . 4 11 10 7 . . 1 14 . . . 4 13 Brawler 10 | . . . 1 . . . 1 2 . . . 2 . . . 1 3 . Duelist 6 | . . . . . . . . 2 . . . . . . . . 2 2 Sentry 36 | . . 10 1 3 . 2 3 1 4 . 1 5 . . 1 1 1 3 Specialist 2 | . . . . . . . . . . . . . . . . . . 2 Hunter 20 | . . . . . . . 3 . 1 . . . 6 . . . . 10 Programmer 27 | . . . . 2 . 3 3 2 2 . 2 1 3 . . 2 1 6 Behemoth 1 | . . . . . . . . . . . . 1 . . . . . . Compactor 2 | . . . . . . . . . . 2 . . . . . . . . Executioner 1 | . . . . . . . . . . . . 1 . . . . . . Savage 1 | . . . . . . . . . . . . 1 . . . . . . Best Kill Streak 11 | 2 7 5 5 7 . 5 4 9 4 2 1 4 11 . 3 2 8 9 Combat Bots Only 9 | . 3 5 5 7 . 5 4 9 2 2 1 4 4 . 1 2 8 6 Max Kills in Single Turn 4 | 1 2 2 1 2 . 3 2 2 2 1 1 1 4 . 2 2 2 3 Gunslinging 1 | . . 1 . 1 . 1 1 1 . . . . . . . . . . Exploded 3 | . . . . . . 3 . . . . . 1 2 . . . 2 3 Melee . | . . . . . . . . . . . . . . . . . . . Uniques/NPCs Destroyed . | . . . . . . . . . . . . . . . . . . . Combat | -11 -10 -9 -8 -8 -8 -8 -7 -7 -6 -6 -6 -6 -5 -5 -5 -5 -5 -4 -------- Run | Yrd Mat Mat Mat Gar Mat Gar Fac Gar Fac Was Fac Gar Fac Was Fac Upp Upp Fac Hostile Shots Fired 1562 | . 94 94 71 79 . 66 156 107 32 10 26 77 126 . 6 17 78 523 Missed 503 | . 28 28 16 16 . 25 45 36 11 2 13 19 37 . 2 3 28 194 Hits 1059 | . 66 66 55 63 . 41 111 71 21 8 13 58 89 . 4 14 50 329 Melee 32 | . . . . . . . . 5 . 8 . . . . . . 5 14 Projectile 1027 | . 66 66 55 63 . 41 111 66 21 . 13 58 89 . 4 14 45 315 AOE 2 | . . . . . . . . . . . . . . . . . . 2 Critical Strikes 44 | . . 3 4 1 . 2 . 3 1 4 . 1 2 . . 2 4 17 Damage Taken 14030 | . 505 643 700 647 . 445 946 912 233 279 147 771 1069 . 389 228 918 5198 Core 2123 | . 116 108 156 82 . 25 98 86 32 30 12 35 72 . 53 . 66 1152 Absorbed by Shields . | . . . . . . . . . . . . . . . . . . . Ignored by Resistances 3948 | . 161 192 192 192 . 128 297 267 68 73 43 224 303 . 26 66 252 1464 Regen/Repaired (Parts) 364 | . . . . . . . 203 . . . . . 161 . . . . . Core Remaining (%) 74 | 100 53 73 . . . 52 . 73 . . . 87 . . . . 80 . Volleys Fired 686 | 12 73 84 53 49 . 38 63 54 28 10 11 40 42 . 8 7 17 97 Largest 6 | 2 2 3 3 3 . 3 4 4 4 4 3 4 6 . 6 6 6 6 Hottest 279 | 40 40 76 69 69 . 69 112 124 167 167 174 218 205 . 263 279 279 279 Shots Fired 2329 | 24 146 251 157 141 . 97 231 195 109 37 25 122 237 . 33 43 90 391 Gun 1611 | 24 146 223 156 141 . 92 227 161 28 9 . 21 143 . 5 4 . 231 Cannon 689 | . . 28 1 . . . . 33 81 28 25 97 94 . 28 39 88 147 Launcher 24 | . . . . . . 5 . . . . . 4 . . . . 2 13 Special 5 | . . . . . . . 4 1 . . . . . . . . . . Kinetic 2214 | 24 146 251 157 141 . 92 227 194 109 37 23 111 237 . 33 43 88 301 Thermal 42 | . . . . . . . . . . . . . . . . . . 42 Explosive 24 | . . . . . . 5 . . . . . 4 . . . . 2 13 Electromagnetic 44 | . . . . . . . . . . . 2 7 . . . . . 35 Robot Hit Streak 54 | 22 24 33 17 43 . 29 54 53 25 25 10 16 36 . 9 8 13 22 Robot Miss Streak 8 | 1 2 3 2 3 . 2 2 1 1 1 1 3 4 . 5 5 8 4 Penetration Max 1 | . . . . . . . 1 1 1 . . 1 1 . . . 1 1 Secondary Targets 19 | . 2 2 3 4 . 2 3 3 . . . . . . . . . . Max Gunslinging Chain 2 | . 1 1 1 1 . 1 1 2 . . . . . . . . . . Shots Hit Robots 1648 | 22 112 174 117 103 . 71 167 146 81 32 16 80 181 . 18 17 44 267 Core Hits 787 | 5 42 69 57 43 . 26 59 60 44 6 5 52 104 . 13 14 33 155 Critical Kills 13 | . 1 . . . . . . 1 1 . . . . . . . . 10 Critical Parts Destroyed 17 | . 1 . 2 . . . 2 . 1 . . . 3 . . . . 8 Critical Strikes 73 | . 2 3 2 . . . 2 4 8 1 1 5 5 . . 3 3 34 Destroy 31 | . 2 . 2 . . . 2 1 2 . . . 3 . . . . 19 Blast 42 | . . 3 . . . . . 3 6 1 1 5 2 . . 3 3 15 Melee Attacks 105 | . . . . 23 . 7 18 24 7 . 1 . 6 . . . . 19 Impact . | . . . . . . . . . . . . . . . . . . . Slashing 105 | . . . . 23 . 7 18 24 7 . 1 . 6 . . . . 19 Piercing . | . . . . . . . . . . . . . . . . . . . Sneak Attacks 25 | . . . . . . . 6 . 2 . . . 5 . . . . 12 Combat Hostiles . | . . . . . . . . . . . . . . . . . . . Follow-up Attacks . | . . . . . . . . . . . . . . . . . . . Damage Inflicted 40829 | 287 1328 2458 1937 1722 . 1585 3501 3068 3200 1167 644 2620 4850 . 717 540 1881 9324 Guns 21552 | 287 1298 2109 1864 1722 . 1098 3037 2674 570 172 . 377 2215 . 96 60 . 3973 Cannons 13802 | . . 330 . . . . . 394 2230 995 644 1962 1508 . 593 480 1504 3162 Explosions 3088 | . . . . . . 487 . . 261 . . 281 674 . . . 377 1008 Melee 2159 | . . . . . . . 464 . 139 . . . 436 . . . . 1120 Ramming 228 | . 30 19 73 . . . . . . . . . 17 . 28 . . 61 Kinetic 33722 | 287 1298 2439 1864 1722 . 1098 3037 3068 2800 1167 633 2266 3723 . 689 540 1504 5587 Thermal 1113 | . . . . . . . . . . . . . . . . . . 1113 Explosive 2933 | . . . . . . 487 . . 261 . . 281 674 . . . 377 853 Electromagnetic 674 | . . . . . . . . . . . 11 73 . . . . . 590 Impact . | . . . . . . . . . . . . . . . . . . . Slashing 2159 | . . . . . . . 464 . 139 . . . 436 . . . . 1120 Piercing . | . . . . . . . . . . . . . . . . . . . Highest Corruption 15 | . . . . 1 1 4 . 1 1 1 1 1 2 2 5 6 6 15 Average Corruption 2 | . . . . 1 1 2 . 1 1 1 1 1 1 2 3 5 6 12 Corruption Purged . | . . . . . . . . . . . . . . . . . . . Corruption Blocked . | . . . . . . . . . . . . . . . . . . . Effects 122 | . . . . 3 . 9 . 7 5 4 10 7 4 2 17 38 11 5 Message Errors 20 | . . . . . . 1 . 3 2 . 2 2 1 . 3 4 . 2 Matter Fused 37 | . . . . 1 . 1 . . . 1 3 2 2 . 5 19 3 . Heat Flow Errors 13 | . . . . . . . . 1 1 2 1 1 . . . 6 1 . Energy Discharges 14 | . . . . 1 . 5 . . . . . 1 . 1 4 1 1 . Parts Rejected 3 | . . . . . . 1 . . . 1 . . . . . . 1 . Data Loss (minor) 15 | . . . . 1 . 1 . 2 . . 2 . . 1 3 4 . 1 Data Loss (major) 7 | . . . . . . . . . 2 . . . . . . 3 2 . Misfires 5 | . . . . . . . . 1 . . 2 . 1 . . 1 . . Alerts 3 | . . . . . . . . . . . . . . . 2 . 1 . Misdirections 2 | . . . . . . . . . . . . . . . . . . 2 Weapon Failures 3 | . . . . . . . . . . . . 1 . . . . 2 . Overload Shots . | . . . . . . . . . . . . . . . . . . . Overflow Damage 1401 | . . . 11 . . . 126 . 118 . 156 86 282 . 2 . 24 596 Projectiles 638 | . . . . . . . . . 118 . 156 74 83 . 2 . 24 181 Explosions 40 | . . . . . . . . . . . . 12 . . . . . 28 Melee 723 | . . . 11 . . . 126 . . . . . 199 . . . . 387 Knockbacks 85 | . . 3 2 . . . . 2 10 . 1 5 9 . 3 4 10 36 Impact 3 | . . 1 2 . . . . . . . . . . . . . . . Kinetic 76 | . . 2 . . . . . 2 8 . 1 5 9 . 3 4 10 32 Secondary 6 | . . . . . . . . . 2 . . . . . . . . 4 Self-Inflicted Damage 134 | . . 9 36 . . . . . . . . 40 . . . . . 49 Shots 3 | . . . . . . . . . . . . 1 . . . . . 2 Rammed 15 | . . 2 4 . . . . . . . . . 1 . . . . 8 Targets Rammed 27 | . 8 2 4 . . . . . . . . . 1 . 2 . . 10 Kicked 12 | . 8 . . . . . . . . . . . . . 2 . . 2 Crushed . | . . . . . . . . . . . . . . . . . . . Highest Temperature 435 | . 12 40 65 84 . 99 24 176 116 193 250 190 199 . 161 223 169 435 Average Temperature 44 | . 5 9 15 16 . 23 6 33 19 119 53 84 61 . 76 60 42 110 Received Heat Transfer 3388 | . 261 297 513 324 . 180 303 213 105 . 30 96 180 . 18 36 342 490 Effects 3 | . . . . . . . . . . . . . . . . . . 3 Shutdowns 1 | . . . . . . . . . . . . . . . . . . 1 Short Circuit 1 | . . . . . . . . . . . . . . . . . . 1 Damage (minor) 1 | . . . . . . . . . . . . . . . . . . 1 Siege Activations . | . . . . . . . . . . . . . . . . . . . Martial Activations . | . . . . . . . . . . . . . . . . . . . Shielding Activations . | . . . . . . . . . . . . . . . . . . . Robots Disrupted . | . . . . . . . . . . . . . . . . . . . Combat Hostiles . | . . . . . . . . . . . . . . . . . . . Robots Corrupted 2 | . . . 1 . . . . . . . . . . . . . . 1 Combat Hostiles 1 | . . . . . . . . . . . . . . . . . . 1 Parts Fried 1 | . . . 1 . . . . . . . . . . . . . . . Impact Corruptions 1 | . . . 1 . . . . . . . . . . . . . . . Robots Melted . | . . . . . . . . . . . . . . . . . . . Combat Hostiles . | . . . . . . . . . . . . . . . . . . . Parts Melted 3 | . . . . . . . . . . . . . . . . . . 3 Heat Transferred 1353 | . . . . . . . . . . . . . . . . . . 1353 Parts Sabotaged . | . . . . . . . . . . . . . . . . . . . Parts Stolen . | . . . . . . . . . . . . . . . . . . . Parts Stripped . | . . . . . . . . . . . . . . . . . . . Power Chain Reactions 1 | . . . . . . . . . . . . . . . . . . 1 Alert | -11 -10 -9 -8 -8 -8 -8 -7 -7 -6 -6 -6 -6 -5 -5 -5 -5 -5 -4 ------- Run | Yrd Mat Mat Mat Gar Mat Gar Fac Gar Fac Was Fac Gar Fac Was Fac Upp Upp Fac Maximum Alert Level 3 | . . . 1 3 1 2 1 3 2 . . 3 2 . 2 . . 3 Low Security (%) 53 | 100 100 100 61 21 . 15 90 13 24 100 100 12 . 100 56 . . 13 Level 1 17 | . . . 38 14 100 38 9 17 61 . . 23 35 . . . . 18 Level 2 21 | . . . . 57 . 45 . 28 14 . . 36 64 . 42 . . 39 Level 3 7 | . . . . 6 . . . 41 . . . 27 . . . . . 27 Level 4 . | . . . . . . . . . . . . . . . . . . . Level 5 . | . . . . . . . . . . . . . . . . . . . High Security . | . . . . . . . . . . . . . . . . . . . Max Security . | . . . . . . . . . . . . . . . . . . . Peak Influence 960 | 10 93 132 282 833 349 650 295 960 436 122 33 923 630 172 693 . . 927 Initial 436 | . . . 25 130 349 175 295 . 436 122 . . 419 172 31 . . 85 Average 250 | 2 33 39 174 420 332 375 60 559 279 40 2 470 426 113 292 . . 491 Influence Increases 11636 | 20 450 1035 609 773 . 515 743 1000 764 1 107 1003 891 . 1078 464 346 1837 Destroy 0b10 Robot/C 6900 | . 320 680 440 520 . 280 460 680 420 . 60 580 480 . 440 340 320 880 Destroy 0b10 Robot/NC 560 | 20 40 65 30 . . . 60 . 75 . 5 5 85 . 45 . . 130 Destroy Leader 1136 | . 68 172 86 20 . 20 128 40 122 . 30 30 94 . 114 30 20 162 Allied During Kill 461 | . . . . 5 . . 1 1 21 . 4 35 1 . 291 94 6 2 Successful Hack 233 | . 21 12 18 18 . 14 40 24 39 . . 20 10 . 11 . . 6 Select Force Hacks 90 | . . 60 . . . . . . . . . . . . 30 . . . Disable Machine 315 | . . 9 . . . 9 9 . 45 . . 9 99 . 27 . . 108 Anti-Garrison Action 700 | . . . . 150 . 100 . 200 . . . 250 . . . . . . Destroy Structure 836 | . 1 7 5 30 . 32 15 55 42 1 8 44 122 . 120 . . 354 Partial Spotted 45 | . . 15 . . . . . . . . . 15 . . . . . 15 Lose Combat Pursuer 360 | . . 15 30 30 . 60 30 . . . . 15 . . . . . 180 Influence Decreases 10804 | 20 450 963 452 169 524 174 1393 40 1304 421 105 82 1224 538 552 1042 190 1161 Entered New Map 3217 | . . . 47 99 484 134 355 . 524 298 . 2 504 418 21 260 . 71 Time Decay 6418 | 20 440 912 395 . 40 . 981 . 720 93 105 . 650 120 400 662 160 720 Lost Part 670 | . 10 50 10 50 . 20 40 20 20 30 . 20 30 . 10 . 10 350 Lost Ally 498 | . . . . 20 . 20 17 20 40 . . 60 40 . 121 120 20 20 Purge Threat 1 | . . 1 . . . . . . . . . . . . . . . . Squads Dispatched 58 | . 3 3 4 . . . 9 . 7 . 4 . 9 . 4 . 1 14 Investigation 14 | . 3 2 1 . . . 4 . . . . . 3 . 1 . . . Extermination 15 | . . . . . . . 4 . 2 . 3 . 2 . 1 . . 3 Reinforcement 19 | . . 1 . . . . 1 . 4 . 1 . 4 . 1 . . 7 Assault 2 | . . . . . . . . . . . . . . . . . 1 1 Garrison 8 | . . . 3 . . . . . 1 . . . . . 1 . . 3 Intercept . | . . . . . . . . . . . . . . . . . . . Searches Triggered . | . . . . . . . . . . . . . . . . . . . Construction Impeded 8 | . . . . . . . 1 . 1 . . . 2 . 1 . . 3 Haulers Reinforced 3 | . . . . . . . . . 1 . . . 1 . . . . 1 Active Scanning Responses . | . . . . . . . . . . . . . . . . . . . Cargo Convoy Interrupts . | . . . . . . . . . . . . . . . . . . . Stealth | -11 -10 -9 -8 -8 -8 -8 -7 -7 -6 -6 -6 -6 -5 -5 -5 -5 -5 -4 --------- Run | Yrd Mat Mat Mat Gar Mat Gar Fac Gar Fac Was Fac Gar Fac Was Fac Upp Upp Fac Distress Signals 22 | . 2 6 1 . . . 1 . 4 . . . 2 . . . . 6 Communications Jammed . | . . . . . . . . . . . . . . . . . . . Distress Signals . | . . . . . . . . . . . . . . . . . . . Times Spotted 438 | . 28 48 30 26 . 17 39 33 24 6 6 29 28 1 12 14 18 79 Peak Tracking Total 9 | . 4 5 5 5 . 4 5 5 4 4 4 6 4 . 5 7 9 7 Tactical Retreats 19 | . . 1 2 2 . 3 2 . . . . 1 . . . . . 8 Traps | -11 -10 -9 -8 -8 -8 -8 -7 -7 -6 -6 -6 -6 -5 -5 -5 -5 -5 -4 ------- Run | Yrd Mat Mat Mat Gar Mat Gar Fac Gar Fac Was Fac Gar Fac Was Fac Upp Upp Fac Traps Triggered 36 | . 3 1 . 16 . 2 2 1 3 . 2 3 3 . . . . . Indirectly . | . . . . . . . . . . . . . . . . . . . Trap Hack Attempts . | . . . . . . . . . . . . . . . . . . . Triggered . | . . . . . . . . . . . . . . . . . . . Disarmed . | . . . . . . . . . . . . . . . . . . . Reprogrammed . | . . . . . . . . . . . . . . . . . . . Reused . | . . . . . . . . . . . . . . . . . . . Traps Extracted . | . . . . . . . . . . . . . . . . . . . Installed . | . . . . . . . . . . . . . . . . . . . Triggered . | . . . . . . . . . . . . . . . . . . . Machines | -11 -10 -9 -8 -8 -8 -8 -7 -7 -6 -6 -6 -6 -5 -5 -5 -5 -5 -4 ---------- Run | Yrd Mat Mat Mat Gar Mat Gar Fac Gar Fac Was Fac Gar Fac Was Fac Upp Upp Fac Machines Disabled 46 | . . 1 . 3 . 3 1 2 5 . . 4 11 . 3 1 . 12 Max in Single Turn 6 | . . 1 . 1 . 1 1 1 1 . . 1 4 . . . . 6 Garrison Access 4 | . . . . . . . 1 . 1 . . . 1 . 1 . . . Garrison Relay 11 | . . . . 3 . 2 . 3 . . . 3 . . . . . . Machines Repaired . | . . . . . . . . . . . . . . . . . . . Machines Dismantled . | . . . . . . . . . . . . . . . . . . . Machines Sabotaged . | . . . . . . . . . . . . . . . . . . . Overloaded Fab Kills . | . . . . . . . . . . . . . . . . . . . Hacking | -11 -10 -9 -8 -8 -8 -8 -7 -7 -6 -6 -6 -6 -5 -5 -5 -5 -5 -4 --------- Run | Yrd Mat Mat Mat Gar Mat Gar Fac Gar Fac Was Fac Gar Fac Was Fac Upp Upp Fac Machines Accessed 75 | . 7 14 8 3 1 2 10 3 5 . 5 3 7 . 4 1 . 2 Terminals 46 | . 7 10 6 3 . 2 4 3 2 . 1 3 2 . 2 . . 1 Fabricators 4 | . . . . . . . 1 . 1 . 1 . . . . . . 1 Repair Stations 4 | . . . . . . . 2 . . . . . 2 . . . . . Recycling Units 5 | . . 2 . . . . . . . . 1 . 1 . 1 . . . Scanalyzers 7 | . . 2 1 . . . 1 . 1 . 1 . 1 . . . . . Garrison Access 8 | . . . 1 . 1 . 2 . 1 . 1 . 1 . 1 . . . Total Hacks 185 | . 19 35 20 6 1 6 25 3 14 . 12 5 22 . 11 1 . 5 Successful 104 | . 11 21 10 3 1 1 15 3 8 . 8 2 11 . 6 1 . 3 Failed 79 | . 8 14 9 3 . 5 9 . 6 . 4 3 11 . 5 . . 2 Catastrophic 7 | . . 2 1 . . . 2 . . . . . 2 . . . . . Database Lockouts 2 | . . . 1 . . . 1 . . . . . . . . . . . Manual 61 | . 12 12 9 . . . 7 . 5 . 4 . 7 . 3 . . 2 Terminals 124 | . 19 28 17 6 . 6 9 3 10 . 2 5 7 . 9 . . 3 Fabricators 9 | . . . . . . . 2 . 1 . 4 . . . . . . 2 Repair Stations 9 | . . . . . . . 5 . . . . . 4 . . . . . Recycling Units 7 | . . 2 . . . . . . . . 2 . 2 . 1 . . . Scanalyzers 25 | . . 5 2 . . . 5 . 2 . 3 . 8 . . . . . Garrison Access 10 | . . . 1 . 1 . 4 . 1 . 1 . 1 . 1 . . . Terminal Hacks 40 | . 4 11 6 3 . 1 1 3 3 . . 2 1 . 3 1 . 1 Robot Analysis 1 | . . . 1 . . . . . . . . . . . . . . . Prototype ID Bank 1 | . 1 . . . . . . . . . . . . . . . . . Open Door 4 | . . . . 1 . . . 1 . . . 1 . . . 1 . . Level Access Points 1 | . . . . . . . . . . . . . . . 1 . . . Branch Access Points 5 | . . 1 1 . . . 1 . . . . . . . 1 . . 1 Emergency Access Points 6 | . . 2 . 1 . . . 1 1 . . . 1 . . . . . Machine Index 1 | . 1 . . . . . . . . . . . . . . . . . Recycling Unit Index 1 | . . 1 . . . . . . . . . . . . . . . . Scanalyzer Index 1 | . 1 . . . . . . . . . . . . . . . . . Unreport Threat 1 | . . 1 . . . . . . . . . . . . . . . . Locate Traps 3 | . . 1 1 . . . . . 1 . . . . . . . . . Dispatch Records 3 | . 1 1 1 . . . . . . . . . . . . . . . Hauler Manifests 3 | . . 1 1 . . . . . . . . . . . 1 . . . Registered Components 1 | . . 1 . . . . . . . . . . . . . . . . Registered Prototypes 1 | . . . . . . . . . 1 . . . . . . . . . Zone Layout 3 | . . 2 1 . . . . . . . . . . . . . . . Patrol Navigation 2 | . . . . 1 . . . 1 . . . . . . . . . . Security Stations 2 | . . . . . . 1 . . . . . 1 . . . . . . Fabricator Hacks 5 | . . . . . . . 2 . 1 . 1 . . . . . . 1 Network Status 3 | . . . . . . . 1 . . . 1 . . . . . . 1 Build 2 | . . . . . . . 1 . 1 . . . . . . . . . Repair Station Hacks 3 | . . . . . . . 2 . . . . . 1 . . . . . Scan Component 2 | . . . . . . . 1 . . . . . 1 . . . . . Repair 1 | . . . . . . . 1 . . . . . . . . . . . Recycling Unit Hacks 2 | . . . . . . . . . . . 2 . . . . . . . Process 1 | . . . . . . . . . . . 1 . . . . . . . Report Inventory 1 | . . . . . . . . . . . 1 . . . . . . . Scanalyzer 18 | . . 5 1 . . . 3 . 1 . 1 . 7 . . . . . Retrieve Study 18 | . . 5 1 . . . 3 . 1 . 1 . 7 . . . . . Garrison Access Hacks 10 | . . . 1 . 1 . 4 . 1 . 1 . 1 . 1 . . . Unlock Access 4 | . . . 1 . 1 . 1 . . . 1 . . . . . . . Seal Access 4 | . . . . . . . 1 . 1 . . . 1 . 1 . . . Coupler Status 2 | . . . . . . . 2 . . . . . . . . . . . Unauthorized Hacks 26 | . 7 5 2 . . . 3 . 2 . 3 . 1 . 2 . . 1 Terminals 19 | . 7 3 2 . . . 2 . 2 . 1 . . . 1 . . 1 Botnet 14 | . 2 3 2 . . . 2 . 2 . 1 . . . 1 . . 1 Skim 5 | . 5 . . . . . . . . . . . . . . . . . Fabricators 2 | . . . . . . . . . . . 2 . . . . . . . Liberate 1 | . . . . . . . . . . . 1 . . . . . . . Haulers 1 | . . . . . . . . . . . 1 . . . . . . . Repair Stations 2 | . . . . . . . 1 . . . . . 1 . . . . . Patch 2 | . . . . . . . 1 . . . . . 1 . . . . . Recycling Units 3 | . . 2 . . . . . . . . . . . . 1 . . . Tunnel 3 | . . 2 . . . . . . . . . . . . 1 . . . Scanalyzers . | . . . . . . . . . . . . . . . . . . . Garrison Access . | . . . . . . . . . . . . . . . . . . . Data Cores Recovered 2 | . . 1 . . . . . . . . . . 1 . . . . . Used 1 | . . 1 . . . . . . . . . . . . . . . . Hacking Detections 57 | . 7 11 6 2 1 2 9 1 4 . 3 3 4 . 2 . . 2 Full Trace Events 6 | . . . 1 . . . 3 . . . . . 2 . . . . . Feedback Events . | . . . . . . . . . . . . . . . . . . . Feedback Blocked . | . . . . . . . . . . . . . . . . . . . Robot Schematics Acquired . | . . . . . . . . . . . . . . . . . . . Robots Built 2 | . . . . . . . . . 2 . . . . . . . . . Authchips . | . . . . . . . . . . . . . . . . . . . Time 67 | . . . . . . . . . 67 . . . . . . . . . Total Robot Build Rating 8 | . . . . . . . . . 8 . . . . . . . . . Part Schematics Acquired . | . . . . . . . . . . . . . . . . . . . Parts Built 2 | . . . . . . . 2 . . . . . . . . . . . Authchips . | . . . . . . . . . . . . . . . . . . . Time 95 | . . . . . . . 95 . . . . . . . . . . . Total Part Build Rating 10 | . . . . . . . 10 . . . . . . . . . . . Part Studies Acquired 17 | . . 4 1 . . . 3 . 1 . 1 . 7 . . . . . Parts Repaired 1 | . . . . . . . 1 . . . . . . . . . . . Time 16 | . . . . . . . 16 . . . . . . . . . . . Parts Recycled . | . . . . . . . . . . . . . . . . . . . Recycled Matter 42 | . . . . . . . . . . . 42 . . . . . . . Retrieved Matter . | . . . . . . . . . . . . . . . . . . . Retrieved Components . | . . . . . . . . . . . . . . . . . . . Parts Scanalyzed . | . . . . . . . . . . . . . . . . . . . Part Schematics Acquired . | . . . . . . . . . . . . . . . . . . . Parts Damaged . | . . . . . . . . . . . . . . . . . . . Bothacking | -11 -10 -9 -8 -8 -8 -8 -7 -7 -6 -6 -6 -6 -5 -5 -5 -5 -5 -4 ------------ Run | Yrd Mat Mat Mat Gar Mat Gar Fac Gar Fac Was Fac Gar Fac Was Fac Upp Upp Fac Used RIF Installer 5 | . . . . 2 . 1 . 1 . . . 1 . . . . . . Command Fork 1 | . . . . . . . . 1 . . . . . . . . . . Signal Jammer 1 | . . . . . . 1 . . . . . . . . . . . . Alert ID Control 1 | . . . . . . . . . . . . 1 . . . . . . Program Shield 1 | . . . . 1 . . . . . . . . . . . . . . Robots Hacked 4 | . . . . . . . 3 1 . . . . . . . . . . Non-combat . | . . . . . . . . . . . . . . . . . . . Combat 4 | . . . . . . . 3 1 . . . . . . . . . . Robot Hacks Applied 5 | . . . . . . . 4 1 . . . . . . . . . . parse_system 1 | . . . . . . . . 1 . . . . . . . . . . find_shortcuts 1 | . . . . . . . 1 . . . . . . . . . . . go_dormant 1 | . . . . . . . 1 . . . . . . . . . . . formatsys_high 2 | . . . . . . . 2 . . . . . . . . . . . Relay Couplers Released 45 | . . . . 13 . 8 . 11 . . . 13 . . . . . . Machine Destruction 45 | . . . . 13 . 8 . 11 . . . 13 . . . . . . Attached 3 | . . . . . . 1 1 1 . . . . . . . . . . Fabnet Peak Effective % . | . . . . . . . . . . . . . . . . . . . Robots Rewired 9 | . . . . 2 . . . . . . . 3 . . . 2 2 . Allies Hacked 3 | . . . . . . . . . . . . . . . 2 1 . . Hacks Repelled . | . . . . . . . . . . . . . . . . . . . Allies | -11 -10 -9 -8 -8 -8 -8 -7 -7 -6 -6 -6 -6 -5 -5 -5 -5 -5 -4 -------- Run | Yrd Mat Mat Mat Gar Mat Gar Fac Gar Fac Was Fac Gar Fac Was Fac Upp Upp Fac Total Allies 40 | . . . . 2 . . 2 1 2 . 2 7 . 20 . 2 2 . Largest Group 20 | . . . . 2 1 1 2 1 2 . 2 4 2 20 20 7 2 2 Highest-Rated Group 756 | . . . . 62 31 31 32 20 80 . 74 175 70 756 756 301 58 58 Highest-Rated Ally 95 | . . . . 31 31 31 16 20 40 . 37 95 41 50 50 50 29 29 Total Orders 3 | . . . . . . . . . . . . . 3 . . . . . EXPLORE 2 | . . . . . . . . . . . . . 2 . . . . . RETURN 1 | . . . . . . . . . . . . . 1 . . . . . Ally Attacks 367 | . . . . 19 . 3 18 1 49 . 2 55 9 16 123 45 20 7 Total Damage 9992 | . . . . 228 . 42 261 . 1041 . 43 2138 279 325 3510 1708 284 133 Kills 71 | . . . . 3 . 1 2 . 9 . . 12 1 1 27 12 2 1 Allies Corrupted 1 | . . . . . . . . . . . . . . . 1 . . . Allies Melted . | . . . . . . . . . . . . . . . . . . . Intel | -11 -10 -9 -8 -8 -8 -8 -7 -7 -6 -6 -6 -6 -5 -5 -5 -5 -5 -4 ------- Run | Yrd Mat Mat Mat Gar Mat Gar Fac Gar Fac Was Fac Gar Fac Was Fac Upp Upp Fac Active Infowar (turns) 12510 | 42 1392 1964 809 1130 85 692 738 . 644 313 991 1272 1301 245 579 . . 313 Optics 3453 | . . . 808 1130 85 692 738 . . . . . . . . . . . IFF 1506 | . . . . . . . . . . . 322 5 1179 . . . . . Terrain 313 | . . . . . . . . . . . . . . . . . . 313 Structural 19 | . . . . . . . . . . . . . . . . . . 19 Traps 6 | . . . . . . . 6 . . . . . . . . . . . Seismic 9286 | 42 1392 1964 809 183 . . . . 644 313 991 1272 852 245 579 . . . Spoofing 1 | . . . . . . . . . . . . 1 . . . . . . Robot Analysis Total 1 | . . . 1 . . . . . . . . . . . . . . . Derelict Logs Recovered 1 | . . . . . . . . . . . . . . . . 1 . . Drone Launches 2 | . . . . . . . . . . . . . 2 . . . . . Drone Recoveries . | . . . . . . . . . . . . . . . . . . . Exploration | -11 -10 -9 -8 -8 -8 -8 -7 -7 -6 -6 -6 -6 -5 -5 -5 -5 -5 -4 ------------- Run | Yrd Mat Mat Mat Gar Mat Gar Fac Gar Fac Was Fac Gar Fac Was Fac Upp Upp Fac Turns Passed 20231 | 117 1392 2177 809 1130 85 692 2406 1401 1455 313 991 1272 1301 252 1028 1632 323 1455 Spaces Moved 10697 | 59 633 1265 410 666 77 444 1654 695 789 165 578 657 607 144 373 653 112 716 Core 134 | 5 . . . . . . . . . . . . . . . . . 129 Treads 4001 | . . . . . . . 353 695 789 165 578 657 607 144 13 . . . Legs 2201 | 54 435 . . . . . . . . . . . . . 360 653 112 587 Wheels 4361 | . 198 1265 410 666 77 444 1301 . . . . . . . . . . . Hover . | . . . . . . . . . . . . . . . . . . . Flight . | . . . . . . . . . . . . . . . . . . . Fastest Speed 50 | 50 115 95 95 110 110 92 107 160 156 155 160 160 160 160 160 220 220 50 Average Speed 145 | 114 119 132 109 110 110 109 121 160 159 164 160 160 160 160 244 220 220 123 Slowest Speed 400 | 120 145 155 110 110 110 140 200 200 200 240 160 200 160 160 250 220 250 400 Overloaded Moves . | . . . . . . . . . . . . . . . . . . . Propulsion Burnouts . | . . . . . . . . . . . . . . . . . . . Robots Hopped 1 | . . . . . . . . . . . . . . . 1 . . . Potential Cave-ins 4 | . . . . . . . . . . . 4 . . . . . . . Cave-ins Triggered 1 | . . . . . . . . . . . . . . . 1 . . . Exploration Rate (%) 45 | 6 96 89 33 75 13 40 36 77 20 82 15 69 17 74 13 80 15 21 Regions Visited 18 Branch Regions 2 Pre-discovered Areas 4 | . 1 2 . . . . . . . . . . . . 1 . . . Known Exits Taken 7 | . 1 . 1 . 1 . 1 . . . 1 . . . 1 . 1 . Unknown Exits Taken 3 | 1 . 1 . . . . . . . . . . . . . 1 . . Scrap Searched 4 | . . . . . . . . . . . . . . . . 4 . . Spaces Dug 42 | . . . 1 5 . 4 11 10 5 . 4 . . . 1 . . 1 Terrain Destroyed 538 | . . . 1 5 . 31 17 10 26 4 14 36 71 . 14 22 69 218 Melee 37 | . . . . 5 . 4 11 10 5 . 1 . . . . . . 1 Projectile 194 | . . . 1 . . . 5 . 13 4 13 11 17 . 14 22 52 42 AOE 306 | . . . . . . 27 . . 8 . . 25 54 . . . 17 175 Terrain Rammed . | . . . . . . . . . . . . . . . . . . . Walls Destroyed . | . . . . . . . . . . . . . . . . . . . Machines Disabled . | . . . . . . . . . . . . . . . . . . . Actions | -11 -10 -9 -8 -8 -8 -8 -7 -7 -6 -6 -6 -6 -5 -5 -5 -5 -5 -4 --------- Run | Yrd Mat Mat Mat Gar Mat Gar Fac Gar Fac Was Fac Gar Fac Was Fac Upp Upp Fac Total 13594 | 81 1128 1603 649 912 77 563 1886 813 896 177 617 782 798 166 473 829 141 1003 Wait 1317 | . 395 180 171 9 . 42 44 8 33 . . 21 112 15 53 145 . 89 Move 10683 | 58 632 1264 410 665 77 443 1654 694 789 164 578 656 607 143 370 652 111 716 Hop 1 | . . . . . . . . . . . . . . . 1 . . . Pick Up 127 | 4 7 20 6 8 . 7 23 4 9 . 6 6 7 1 3 . . 16 Fast Attach 79 | 7 . 7 . . . 3 12 7 7 1 5 1 2 2 8 2 1 14 Attach 67 | . 1 4 3 5 . 2 9 3 3 2 5 3 7 . 3 . 3 14 Detach 23 | . . . . . . 1 . 2 2 . 2 2 3 1 4 . 2 4 Swap 123 | . 8 15 2 11 . 7 22 10 6 . 4 8 8 1 6 1 2 12 Drop 146 | . 4 27 . 3 . 5 39 7 12 . 5 9 3 3 15 3 . 11 Fire 686 | 12 73 84 53 49 . 38 63 54 28 10 11 40 42 . 8 7 17 97 Melee 105 | . . . . 23 . 7 18 24 7 . 1 . 6 . . . . 19 Ram 15 | . . 2 4 . . . . . . . . . . . . . . 9 Kick 12 | . 8 . . . . . . . . . . . . . 2 . . 2 Crush 1 | . . . . . . . . . . . . . 1 . . . . . Escape Stasis 133 | . . . . 125 . 8 . . . . . . . . . . . . Rewire 76 | . . . . 14 . . 2 . . . . 36 . . . 19 5 . Trap . | . . . . . . . . . . . . . . . . . . . Miscellaneous . | . . . . . . . . . . . . . . . . . . . Route ------- -11/Scrapyard -10/Materials (discovered 6 exits: *Mat x3 / [*Min x2] / [*Sub]) -9/Materials (discovered 4 exits: *Mat x2 / *Min x2) -8/Materials -8/Garrison (discovered 3 exits: *Mat x3) -8/Materials -8/Garrison -7/Factory (discovered 4 exits: *Sto / *Low x2 / Gar) -7/Garrison (discovered 3 exits: *Fac x3) -6/Factory -6/Waste -6/Factory -6/Garrison (discovered 3 exits: *Fac x3) -5/Factory -5/Waste -5/Factory (discovered 6 exits: *Fac x4 / *Upp x2) -5/Upper Caves -5/Upper Caves -4/Factory (discovered 5 exits: Res / Upp x2 / Ext x2) History --------- Turn | Location | Event 8 | -11/Scrapyard | Discovered new exit (range 14) 118 | -11/Scrapyard | Entered Materials 346 | -10/Materials | Build established: Mutant 439 | -10/Materials | Discovered new exit (range 15) 710 | -10/Materials | Discovered new exit (range 12) 1028 | -10/Materials | Discovered new exit (range 16) 1112 | -10/Materials | Discovered new exit (range 12) 1127 | -10/Materials | Identified exit to Materials 1196 | -10/Materials | Learned Storage stockpile data 1255 | -10/Materials | Loaded intel: 10 trap records 1368 | -10/Materials | Loaded intel: 26 non-interactive machine locations 1384 | -10/Materials | Learned location of 1 exit from Recycling 1409 | -10/Materials | Learned 4 Subcaves zone layouts 1444 | -10/Materials | Learned 2 Storage zone layouts 1488 | -10/Materials | Learned location of Mines (-9) 1510 | -10/Materials | Entered another Materials area 1510 | -9/Materials | Evolved 2 slots: Propulsion x1, Weapon x1 1913 | -9/Materials | Lost 3 parts (1p1u1w) 1959 | -9/Materials | Discovered new exit (range 10) 2181 | -9/Materials | Build established: Scavenger-Gunner 2310 | -9/Materials | Identified exit to Mines 2482 | -9/Materials | Discovered new exit (range 3) 2918 | -9/Materials | Build established: Gunner 3687 | -9/Materials | Entered another Materials area 3687 | -8/Materials | Evolved 2 slots: Propulsion x1, Utility x1 3975 | -8/Materials | Build established: Skirmisher 4095 | -8/Materials | Central database locked down 4166 | -8/Materials | Garrison activated, responded to threat 4330 | -8/Materials | Garrison activated, responded to threat 4496 | -8/Materials | Identified exit to Garrison 4496 | -8/Materials | Entered Garrison 4566 | -8/Garrison | Triggered checkpoint 4664 | -8/Garrison | Triggered checkpoint 4738 | -8/Garrison | Garrison Relay disabled 4845 | -8/Garrison | Triggered checkpoint 4920 | -8/Garrison | Destroyed 7 combat bots 4974 | -8/Garrison | Discovered new exit (range 16) 4998 | -8/Garrison | Installed Relay Interface Framework 5039 | -8/Garrison | Triggered checkpoint 5060 | -8/Garrison | Garrison Relay disabled 5117 | -8/Garrison | Build established: Tank 5201 | -8/Garrison | Discovered new exit (range 10) 5267 | -8/Garrison | Expanded RIF knowledge: Program Shield 5302 | -8/Garrison | Triggered checkpoint 5484 | -8/Garrison | Triggered checkpoint 5544 | -8/Garrison | Triggered checkpoint 5554 | -8/Garrison | Garrison Relay disabled 5616 | -8/Garrison | Discovered new exit (range 3) 5626 | -8/Garrison | Entered Materials 5626 | -8/Materials | Accompanied by 1 ally 5711 | -8/Materials | Identified exit to Garrison 5711 | -8/Materials | Entered Garrison 5711 | -8/Garrison | Accompanied by 1 ally 5746 | -8/Garrison | Expanded RIF knowledge: Signal Jamming 5821 | -8/Garrison | Triggered checkpoint 5936 | -8/Garrison | Garrison Relay disabled 6057 | -8/Garrison | Triggered checkpoint 6211 | -8/Garrison | Discovered new exit (range 17) 6318 | -8/Garrison | Triggered checkpoint 6334 | -8/Garrison | Garrison Relay disabled 6342 | -8/Garrison | Learned Factory security intel 6403 | -8/Garrison | Entered Factory 6403 | -7/Factory | Evolved 2 slots: Utility x1, Weapon x1 6757 | -7/Factory | Discovered new exit (range 8) 6831 | -7/Factory | Central database locked down 6919 | -7/Factory | Discovered new exit (range 15) 6969 | -7/Factory | Repaired Arm. Wheel+ 7428 | -7/Factory | Build established: Scientist-Gunner 7749 | -7/Factory | Identified exit to Storage 7749 | -7/Factory | Identified exit to Lower Caves 7881 | -7/Factory | Build established: Gunner 8484 | -7/Factory | Fabricated Nuclear Pulse Thruster? 8488 | -7/Factory | Found Prototype Launcher 8488 | -7/Factory | Identified Rocket Array 8809 | -7/Factory | Identified exit to Garrison 8809 | -7/Factory | Entered Garrison 8863 | -7/Garrison | Triggered checkpoint 8987 | -7/Garrison | Garrison Relay disabled 9017 | -7/Garrison | Destroyed 7 combat bots 9054 | -7/Garrison | Rescued a captive Derelict 9193 | -7/Garrison | Triggered checkpoint 9196 | -7/Garrison | Triggered checkpoint 9281 | -7/Garrison | Destroyed 9 combat bots 9360 | -7/Garrison | Destroyed 8 combat bots 9450 | -7/Garrison | Garrison Relay disabled 9451 | -7/Garrison | Triggered checkpoint 9550 | -7/Garrison | Discovered new exit (range 10) 9625 | -7/Garrison | Triggered checkpoint 9732 | -7/Garrison | Triggered checkpoint 9775 | -7/Garrison | Triggered checkpoint 9879 | -7/Garrison | Garrison Relay disabled 9944 | -7/Garrison | Discovered new exit (range 10) 10045 | -7/Garrison | Expanded RIF knowledge: Command Fork 10090 | -7/Garrison | Discovered new exit (range 15) 10210 | -7/Garrison | Entered Factory 10210 | -6/Factory | Evolved 2 slots: Utility x1, Weapon x1 10610 | -6/Factory | Build established: Scientist-Gunner 10937 | -6/Factory | Fabricated X-62 Marksman (x2) 11108 | -6/Factory | Garrison activated, responded to threat 11196 | -6/Factory | Spotted B-75 Beast 11337 | -6/Factory | Discovered new exit (range 11) 11665 | -6/Factory | Sucked down chute 11665 | -6/Factory | Entered Waste 11676 | -6/Waste | Spotted C-40 Crusher 11681 | -6/Waste | Spotted C-40 Crusher 11682 | -6/Waste | Destroyed C-40 Crusher 11694 | -6/Waste | Destroyed C-40 Crusher 11737 | -6/Waste | Spotted C-40 Crusher 11762 | -6/Waste | Crushed by Compactor (1 part destroyed) 11766 | -6/Waste | Crushed by Compactor (1 part destroyed) 11785 | -6/Waste | Crushed by Compactor (1 part destroyed, 1 dropped) 11801 | -6/Waste | Spotted C-40 Crusher 11807 | -6/Waste | Crushed by Compactor (0 parts destroyed, 2 dropped) 11810 | -6/Waste | Crushed by Compactor (0 parts destroyed, 1 dropped) 11813 | -6/Waste | Crushed by Compactor (0 parts destroyed, 1 dropped) 11816 | -6/Waste | Lost 3 parts (1n2w) 11825 | -6/Waste | Spotted C-40 Crusher 11867 | -6/Waste | Spotted C-40 Crusher 11875 | -6/Waste | Crushed by Compactor (1 part destroyed) 11960 | -6/Waste | Discovered new exit (range 12) 11978 | -6/Waste | Entered Factory 12969 | -6/Factory | Identified exit to Garrison 12969 | -6/Factory | Entered Garrison 12997 | -6/Garrison | Learned Factory security intel 13025 | -6/Garrison | Triggered checkpoint 13057 | -6/Garrison | Garrison Relay disabled 13110 | -6/Garrison | Found embedded Infiltrators 13147 | -6/Garrison | Spotted Executioner 13152 | -6/Garrison | Spotted Executioner 13169 | -6/Garrison | Destroyed Executioner 13270 | -6/Garrison | Triggered checkpoint 13289 | -6/Garrison | Triggered checkpoint 13296 | -6/Garrison | Triggered checkpoint 13402 | -6/Garrison | Discovered new exit (range 12) 13423 | -6/Garrison | Triggered checkpoint 13433 | -6/Garrison | Spotted B-75 Beast 13476 | -6/Garrison | Destroyed B-75 Beast 13603 | -6/Garrison | Expanded RIF knowledge: Alert ID Control 13639 | -6/Garrison | Triggered checkpoint 13692 | -6/Garrison | Discovered new exit (range 15) 13715 | -6/Garrison | Build established: Scavenger-Gunner 13849 | -6/Garrison | Triggered checkpoint 13887 | -6/Garrison | Garrison Relay disabled 13889 | -6/Garrison | Garrison Relay disabled 14171 | -6/Garrison | Discovered new exit (range 12) 14185 | -6/Garrison | Rescued a captive Derelict 14186 | -6/Garrison | Rescued a captive Derelict 14241 | -6/Garrison | Entered Factory 14241 | -5/Factory | Accompanied by 2 allies 14241 | -5/Factory | Evolved 2 slots: Utility x1, Weapon x1 14539 | -5/Factory | Build established: Scientist-Executioner 15304 | -5/Factory | Build established: Scavenger-Executioner 15542 | -5/Factory | Sucked down chute 15542 | -5/Factory | Entered Waste 15543 | -5/Waste | Joined by Warlord forces that had cleared the area 15599 | -5/Waste | Found Prototype Processor 15599 | -5/Waste | Identified Exp. Terrain Scan Processor 15622 | -5/Waste | A Compactor rumbled back to life 15622 | -5/Waste | Spotted C-40 Crusher 15624 | -5/Waste | Allies destroyed C-40 Crusher 15646 | -5/Waste | Discovered new exit (range 16) 15794 | -5/Waste | Entered Factory 15794 | -5/Factory | Accompanied by 20 allies 15874 | -5/Factory | Identified exit to Factory 15874 | -5/Factory | Identified exit to Upper Caves 16216 | -5/Factory | Garrison activated, responded to threat 16378 | -5/Factory | Crushed by falling debris 16414 | -5/Factory | Lost 4 allies 16663 | -5/Factory | Lost 4 allies 16674 | -5/Factory | Build established: Executioner 16822 | -5/Factory | Entered Upper Caves 16822 | -5/Upper Caves | Accompanied by 7 allies 17028 | -5/Upper Caves | Attracted the attention of an 0b10 checkpoint 17042 | -5/Upper Caves | Build established: Scavenger-Executioner 17121 | -5/Upper Caves | Attracted the attention of an 0b10 outpost 17449 | -5/Upper Caves | Lost 5 allies 17505 | -5/Upper Caves | Learned 8 Factory zone layouts 18258 | -5/Upper Caves | Discovered new exit (range 8) 18454 | -5/Upper Caves | Entered another Upper Caves area 18454 | -5/Upper Caves | Accompanied by 1 ally 18474 | -5/Upper Caves | Attracted the attention of an 0b10 outpost 18549 | -5/Upper Caves | Destroyed 8 combat bots 18750 | -5/Upper Caves | Discovered exit to Factory (range 11) 18777 | -5/Upper Caves | Entered Factory 18777 | -4/Factory | Accompanied by 2 allies 18777 | -4/Factory | Evolved 2 slots: Power x1, Propulsion x1 18778 | -4/Factory | Identified exit to Upper Caves 18778 | -4/Factory | Identified exit to Research 18858 | -4/Factory | Identified exit to Extension 19073 | -4/Factory | Lost 6 parts (1p1n1u3w) 19156 | -4/Factory | Lost 7 parts (1p1n1u4w) 20027 | -4/Factory | First assault squad dispatched 20150 | -4/Factory | System corruption reached 10% 20159 | -4/Factory | Released all parts (3) 20185 | -4/Factory | Lost 13 parts (2p3n4u4w) 20203 | -4/Factory | Spotted B-86 Titan 20204 | -4/Factory | Core integrity fell below 50% 20222 | -4/Factory | Core integrity fell below 20% 20232 | -4/Factory | Destroyed by S-27 Virus with Autogun Last Messages --------------- 20161_ R-10 Processor collects Flexi-carbon Leg. 20162_ K-01 Serf collects debris. 20164_ R-10 Processor collects Myomer Leg. 20164_ K-01 Serf collects debris. 20167_ R-10 Processor collects Mni. Assault Cannon. 20180_ ALERT: Potential suspicious activity detected, Programmers report to Factory Zone 7S. 20201_ BTZ8CLDQPAZPHT98 WE#,<7NSFBAWH8 20223_ Slammed into S-27 Virus. 20224_ Destabilizing: Core damaged (-34). 20225_ Slammed into S-27 Virus. 20228_ S-27 Virus destroyed. 20228_ Slammed into S-27 Virus. 20230_ 4Q#PQ<:FO5OACMAX/LCLAQKVNAPNG1D9MX22AC1A Map ----- +----------------------------------------------------+ | ????????????????? ??????????# #??????????? | | ??????????????????????????????# #??????????? | | ?????????????????????#????????# ""T"" #??????????? | | ?????????????????????# "??????# """"" #??????????? | | ?????????????????????# ??????# #?? #??????? | | ?????????????????????# "????#####"+#### #??????? | | ?????????????????????# ""???# #??????? | | ?????????????????#???? ""???# #??????? | | ?????????????????# ?##? ??## #??????? | | ?????????????????# ##"##+##"# ######??????? | | ?????????????????# #???????????? | | ?????????????????# #???????????? | | ?????????????????# #???????????? | | ?????????????????# #???????????? | | ?????????????????# "" #???????????? | | ?????????????????#######!!| """ #???????????? | | ???????????????????????#!|| F" #???????????? | | ???????????????????????#!|| """ +???????????? | | ???????????????????????# ! "" #???????????? | | ???????????????????????# #???????????? | | ???????????????????????# ?????????? | | ???????????????????????# ###% ######+##??????????? | | ???????????????????????# ##"% #??????????????????? | | ???????????????????????# ###%B#??????????????????? | | ???????????????????#####+##;BB#??????????????????? | | ???????????????????# @%s%#???????????????????? | | ???????????????????# [s%s #???????????????????? | | ???????????????????# #???????????????????? | | ???????????????????# #???????????????????? | | ???????????????????#############?????????????????? | | ?????????????????????????????????????????????????? | | ?????????????????????????????????????????????????? | | ?????????????????????????????????????????????????? | | ?????????????????????????????????????????????????? | | ?????????????????????????????????????????????????? | | ?????????????????????????????????????????????????? | | ?????????????????????????????????????????????????? | | ?????????????????????????????????????????????????? | | ???????########??????????????????????????????????? | | ??????? #??????????????????????????????????? | | ??????? #???##############?????????????????? | | ???????"""" #???# #?????????????????? | | ???????"""" ##### """""" #?????????????????? | | ???????"""" # # """""" #?????????????????? | | ???????"""" ##### """""" #?????????????????? | | ??????? #??# """""" #?????????????????? | | ??????? ##??# #?????????????????? | | ???????########???# #?????????????????? | | ??????????????????# #?????????????????? | | ??????????????????# +?????????????????? | +----------------------------------------------------+ Best States ------------- Heat Dissipation 81 Coolant Potential 65 Energy Generation 41 Energy Capacity 800 Matter Stores 500 Matter Capacity 500 Sight Range 18 Terrain Scan Range 14 Terrain Scan Density 10 Armor Coverage 450 Resistance: KI 20 Resistance: TH 20 Resistance: EX 20 Resistance: EM 20 Resistance: I 20 Resistance: S 20 Resistance: P 20 Evasion (%) 55 Targeting Accuracy 14 Core Analysis 6 Recoil Reduction 4 Matter Filtering 50 Offensive Hacking 10 Relay Coupler Types 1 Relay Coupler Value 38 Authchip Count 2 Item Schematics ----------------- None Robot Schematics ------------------ None Fabricated ------------ Nuclear Pulse Thruster | x2 | -7/Factory | Preloaded X-62 Marksman | x2 | -6/Factory | Preloaded Repaired ---------- Arm. Wheel | 2% | -7/Factory Studied --------- Arm. Wheel | -9/Materials | Hacked Hvy. Assault Rifle | -9/Materials | Hacked Mni. Grenade Launcher | -9/Materials | Hacked Wheel | -9/Materials | Hacked Assault Cannon | -8/Materials | Hacked Lgt. Treads | -7/Factory | Hacked Gauss Rifle | -7/Factory | Hacked Imp. Treads | -7/Factory | Hacked Hvy. Mass Driver | -6/Factory | Hacked Med. Treads | -6/Factory | Hacked Imp. Deuterium Engine | -5/Factory | Hacked Lgt. Deuterium Engine | -5/Factory | Hacked Flak Gun | -5/Factory | Hacked Magnetic Acceleration Cannon | -5/Factory | Hacked Hvy. Rocket Launcher | -5/Factory | Hacked Power Sword | -5/Factory | Hacked Arm. Huge Wheel | -5/Factory | Hacked Alien Tech Used ----------------- None Achievements -------------- Below Gun Specialist Hydra Like A Rock Resistances Are Futile Tune-up Challenges ------------ None Game ------ Seed MultinovaRocketMeganuke Manual? 0 Play Time 03:34:40 Cumulative 136.0 hours Start 2025.11.20 @ 13:50:00 End 2025.11.28 @ 00:33:45 Sessions 9 Manual Loads 0 Difficulty Adventurer Special Mode None Game No. 54 Rogue 0 Adventurer 50 Explorer 4 Win Type - Total 2 Types 2/0/0/0/0/0/0/0/0/0 Lore% 37 Gallery% 46 Achievement% 35 Wizard Run 0 Options --------- Layout 0 ASCII 0 Keyboard 1 Movement Numpad Keybinds 0 Fullscreen 2 Font 36/Smallcaps Map View 76x50 Zoom Use 0% Tactical HUD 1 Map Filters NONE Filters NONE Steam 1 RUN: e5a61416-2445-4a8a-91b5-8fe81239da30